bitfinex/quotes_BTCUSD_20241111
["timestamp","ask_amount","ask_price","bid_price","bid_amount"]
[1731331026328,0.18356146,81639.0,81638.0,0.222491]
[1731331026540,0.43356146,81669.0,81656.0,0.222464]
[1731331026541,0.18356146,81669.0,81656.0,0.222464]
[1731331026763,0.18356146,81669.0,81651.0,0.171461]
[1731331026764,0.18356146,81669.0,81653.0,0.171457]
[1731331026984,0.18356146,81654.0,81653.0,0.122469]
[1731331027188,0.18356146,81654.0,81639.0,0.08]
[1731331027189,0.005,81657.0,81656.0,0.122464]
[1731331027477,1.505,81657.0,81656.0,0.122464]
[1731331027698,1.5,81657.0,81656.0,0.122464]
[1731331027912,0.001688,81672.0,81667.0,0.122448]
[1731331027913,0.005,81668.0,81667.0,0.122448]
[1731331028153,0.01620935,81668.0,81667.0,0.122448]
[1731331028360,0.01620935,81668.0,81649.0,0.122475]
[1731331028361,0.005,81668.0,81649.0,0.122475]
[1731331028569,0.005,81668.0,81648.0,0.023]
[1731331028570,0.005,81668.0,81667.0,0.122448]
[1731331028775,0.005,81668.0,81648.0,0.023]
[1731331028981,0.005,81668.0,81666.0,0.122448]
[1731331029192,0.005,81668.0,81667.0,0.122448]
[1731331029389,0.005,81668.0,81647.0,0.005]
[1731331029620,0.005,81668.0,81654.0,0.18356146]
[1731331029801,0.005,81668.0,81663.0,0.122454]
[1731331030044,0.005,81668.0,81655.0,0.171453]
[1731331030045,0.00244903,81667.0,81655.0,0.171453]
[1731331030260,0.00244903,81667.0,81665.0,0.12245]
[1731331030683,1.49984238,81666.0,81665.0,0.12245]
[1731331032249,1.49984238,81666.0,81659.0,0.171444]
[1731331032480,1.49984238,81666.0,81665.0,0.12245]
[1731331032696,1.49984238,81666.0,81615.0,0.85725636]
[1731331032697,0.005,81616.0,81615.0,0.85725636]
[1731331032902,0.005,81616.0,81605.0,0.0463]
[1731331032903,0.005,81620.0,81610.0,0.005]
[1731331033119,1.5,81619.0,81611.0,0.00245038]
[1731331033353,1.5,81619.0,81610.0,0.005]
[1731331034958,1.5,81619.0,81614.0,0.122527]
[1731331035255,1.5,81619.0,81609.0,0.152042]
[1731331035464,1.5,81619.0,81606.0,0.73473136]
[1731331035647,1.5,81619.0,81608.0,0.122536]
[1731331035905,1.5,81619.0,81598.0,0.023]
[1731331035906,0.73473136,81618.0,81598.0,0.023]
[1731331036145,0.005,81605.0,81598.0,0.1]
[1731331036371,0.005,81607.0,81598.0,0.1]
[1731331036816,0.245061,81613.0,81598.0,0.10245083]
[1731331037041,0.005,81614.0,81602.0,0.122544]
[1731331037268,1.5,81613.0,81604.0,0.122542]
[1731331037732,1.5,81613.0,81599.0,0.18380438]
[1731331037953,1.5,81613.0,81590.0,0.18518838]
[1731331037954,0.01,81598.0,81590.0,0.001384]
[1731331038183,0.132558,81594.0,81590.0,0.18518838]
[1731331038397,0.13500703,81594.0,81590.0,0.18518838]
[1731331038609,1.63500703,81594.0,81590.0,0.001384]
[1731331038819,1.632558,81594.0,81582.0,0.00625064]
[1731331039030,1.632558,81594.0,81585.0,0.003615]
[1731331039031,0.005,81591.0,81585.0,0.003615]
[1731331039238,0.18380438,81586.0,81585.0,0.003615]
[1731331039468,0.01,81587.0,81585.0,0.003615]
[1731331039702,0.07156665,81627.0,81586.0,0.31130438]
[1731331039968,0.18380438,81617.0,81595.0,0.2546833]
[1731331040215,0.005,81625.0,81595.0,0.2546833]
[1731331040637,0.005,81625.0,81616.0,0.122524]
[1731331040844,0.43380438,81631.0,81579.0,0.147096]
[1731331040845,0.005,81611.0,81579.0,0.147096]
[1731331041048,0.005,81615.0,81594.0,0.1]
[1731331041277,0.005,81615.0,81608.0,0.122535]
[1731331041449,0.005,81615.0,81586.0,0.1]
[1731331041450,0.005,81603.0,81591.0,0.122561]
[1731331041698,0.005,81603.0,81576.0,0.00073284]
[1731331041920,0.005,81589.0,81582.0,0.18380438]
[1731331042128,0.005,81589.0,81582.0,0.30637938]
[1731331042331,0.005,81587.0,81576.0,0.00073284]
[1731331042873,0.005,81578.0,81576.0,0.00073284]
[1731331043309,0.005,81578.0,81560.0,0.25]
[1731331043310,0.01,81570.0,81569.0,0.24847322]
[1731331043522,0.29103228,81570.0,81569.0,0.23137898]
[1731331043739,0.007,81553.0,81537.0,0.00023043]
[1731331043945,0.01,81545.0,81537.0,0.00023043]
[1731331044156,0.01,81545.0,81520.0,0.4150085]
[1731331044157,0.0176597,81545.0,81520.0,0.4150085]
[1731331044363,0.04300692,81545.0,81520.0,0.4150085]
[1731331044582,0.04653359,81545.0,81520.0,0.4150085]
[1731331044788,1.56119329,81545.0,81520.0,0.2678065]
[1731331044998,1.54174426,81545.0,81525.0,0.12266]
[1731331045186,1.53674426,81545.0,81534.0,0.122648]
[1731331045429,1.53674426,81545.0,81523.0,0.171729]
[1731331045636,1.53674426,81545.0,81522.0,0.171732]
[1731331045845,1.66268647,81545.0,81529.0,0.18380438]
[1731331046300,0.25,81537.0,81522.0,0.18380438]
[1731331046513,0.41268647,81537.0,81524.0,0.122662]
[1731331046727,0.41268647,81537.0,81522.0,0.18380438]
[1731331046952,1.91268647,81537.0,81524.0,0.122662]
[1731331047182,1.53674426,81537.0,81536.0,0.397645]
[1731331047423,0.03674426,81537.0,81536.0,0.397645]
[1731331047637,0.00244903,81565.0,81541.0,0.005]
[1731331047868,0.25,81566.0,81541.0,0.005]
[1731331047869,0.18380438,81552.0,81551.0,0.122622]
[1731331048291,0.25,81566.0,81551.0,0.0122622]
[1731331048499,0.25,81566.0,81542.0,0.12594221]
[1731331048500,0.25,81566.0,81545.0,0.005]
[1731331048711,0.01277,81569.0,81568.0,0.122597]
[1731331049173,0.01277,81569.0,81568.0,0.52095543]
[1731331049388,0.01277,81569.0,81568.0,0.64689764]
[1731331049599,0.01277,81569.0,81568.0,0.122597]
[1731331049802,0.01277,81569.0,81559.0,0.0751]
[1731331050028,0.25,81578.0,81559.0,0.0751]
[1731331050029,0.00244903,81577.0,81559.0,0.0751]
[1731331050251,0.18380438,81573.0,81559.0,0.08361]
[1731331050512,0.18380438,81573.0,81572.0,0.122591]
[1731331050919,0.18380438,81580.0,81574.0,0.171622]
[1731331051125,0.18380438,81580.0,81562.0,0.005]
[1731331051329,0.00244903,81579.0,81563.0,0.04118684]
[1731331051552,0.00244903,81579.0,81557.0,0.005]
[1731331051553,0.18380438,81570.0,81557.0,0.171659]
[1731331051766,0.18380438,81570.0,81549.0,0.18380438]
[1731331051767,0.12594221,81578.0,81568.0,0.122595]
[1731331051976,0.00244903,81577.0,81557.0,0.171659]
[1731331052191,0.12594221,81576.0,81566.0,0.122599]
[1731331052405,0.12594221,81576.0,81526.0,0.00023043]
[1731331052406,0.25,81564.0,81539.0,0.18380438]
[1731331052619,0.12839124,81563.0,81559.0,0.12261]
[1731331052836,0.12839124,81563.0,81558.0,0.122611]
[1731331053093,0.12839124,81563.0,81539.0,0.18380438]
[1731331053094,0.25,81575.0,81574.0,0.122588]
[1731331053520,1.75,81588.0,81579.0,0.12258]
[1731331053738,1.75,81588.0,81564.0,0.171643]
[1731331053739,0.00244903,81587.0,81564.0,0.171643]
[1731331053943,0.25,81597.0,81567.0,0.18380438]
[1731331054156,0.18380438,81587.0,81586.0,0.12257]
[1731331054615,0.25,81588.0,81567.0,0.12594221]
[1731331054616,0.25,81588.0,81587.0,0.122568]
[1731331054825,0.00244903,81595.0,81587.0,0.0122568]
[1731331055033,0.18380438,81593.0,81568.0,0.18380438]
[1731331055241,0.12594221,81594.0,81584.0,0.122571]
[1731331055242,0.12839124,81592.0,81584.0,0.122571]
[1731331055459,0.12594221,81591.0,81570.0,0.183891]
[1731331055671,0.03,81587.0,81586.0,0.12257]
[1731331055877,0.03,81587.0,81571.0,0.03849473]
[1731331055878,0.15839124,81587.0,81577.0,0.122582]
[1731331056079,0.12839124,81586.0,81574.0,0.18380438]
[1731331056279,0.12839124,81586.0,81575.0,0.122586]
[1731331056529,0.12839124,81586.0,81540.0,0.183957]
[1731331056530,0.12839124,81586.0,81562.0,0.183908]
[1731331056781,0.12839124,81586.0,81552.0,0.18393]
[1731331056782,0.25,81578.0,81560.0,0.183913]
[1731331057020,0.25,81578.0,81552.0,0.18393]
[1731331057021,0.12839124,81577.0,81552.0,0.18393]
[1731331057228,0.25,81569.0,81552.0,0.18393]
[1731331057430,0.25,81569.0,81539.0,0.18380438]
[1731331057431,0.12839124,81568.0,81553.0,0.183929]
[1731331057616,1.62839124,81568.0,81545.0,0.005]
[1731331057762,1.62594221,81568.0,81563.0,0.122603]
[1731331057963,0.18625341,81567.0,81560.0,0.30652]
[1731331058164,0.00244903,81567.0,81560.0,0.183912]
[1731331058388,0.00244903,81567.0,81541.0,0.005]
[1731331058589,0.00244903,81567.0,81536.0,0.25]
[1731331058590,0.005,81540.0,81536.0,0.25]
[1731331058798,0.5,81542.0,81536.0,0.25]
[1731331058799,0.00244903,81539.0,81536.0,0.25]
[1731331059370,0.122643,81537.0,81536.0,0.25]
[1731331059999,1.622643,81537.0,81536.0,0.25]
[1731331060208,1.5,81537.0,81536.0,0.25]
[1731331060618,1.74858521,81537.0,81536.0,0.25]
[1731331061301,0.377655,81529.0,81528.0,0.25]
[1731331061503,0.37594221,81529.0,81528.0,0.25]
[1731331061862,1.87594221,81529.0,81528.0,0.25]
[1731331062087,1.5,81529.0,81528.0,0.25]
[1731331062261,0.245245,81551.0,81531.0,0.183977]
[1731331062262,0.25,81551.0,81531.0,0.183977]
[1731331062472,0.25,81551.0,81539.0,0.12264]
[1731331062473,0.18380438,81540.0,81539.0,0.12264]
[1731331062665,0.12594221,81550.0,81542.0,0.122635]
[1731331062864,0.12594221,81550.0,81528.0,0.2933989]
[1731331062865,1.5,81551.0,81550.0,0.122624]
[1731331063128,0.18380438,81554.0,81545.0,0.183947]
[1731331063445,0.18625341,81553.0,81546.0,0.01811259]
[1731331063657,0.18625341,81553.0,81550.0,0.122622]
[1731331063893,0.00244903,81553.0,81551.0,0.01456544]
[1731331064100,0.00244903,81559.0,81555.0,0.122615]
[1731331064318,0.12594221,81558.0,81556.0,0.01456544]
[1731331064523,0.12594221,81558.0,81556.0,0.00354604]
[1731331064729,0.25,81562.0,81556.0,0.00354604]
[1731331064730,0.43380438,81575.0,81557.0,0.04938944]
[1731331064956,0.43380438,81575.0,81556.0,0.00354604]
[1731331064957,0.12839124,81574.0,81567.0,0.122597]
[1731331065165,0.12839124,81574.0,81556.0,0.00354604]
[1731331065384,0.12839124,81574.0,81570.0,0.122593]
[1731331065599,0.12839124,81574.0,81557.0,0.01457379]
[1731331065813,0.12839124,81574.0,81530.0,0.005]
[1731331065814,0.24523,81556.0,81544.0,0.18380438]
[1731331066020,0.25,81557.0,81544.0,0.18380438]
[1731331066021,0.12839124,81555.0,81553.0,0.18380438]
[1731331066236,0.12839124,81555.0,81544.0,0.18380438]
[1731331066237,0.122624,81550.0,81544.0,0.18380438]
[1731331066444,0.12839124,81549.0,81545.0,0.01459306]
[1731331066651,0.00244903,81549.0,81546.0,0.18380438]
[1731331066873,0.122618,81555.0,81546.0,0.13722206]
[1731331067095,0.43148441,81556.0,81547.0,0.01459306]
[1731331067096,0.12839124,81554.0,81547.0,0.01459306]
[1731331067305,0.495239,81553.0,81538.0,0.12264]
[1731331067519,0.12839124,81552.0,81547.0,0.122627]
[1731331067725,0.12839124,81552.0,81548.0,0.01459933]
[1731331067939,0.122624,81550.0,81549.0,0.01459933]
[1731331068151,0.24856621,81550.0,81549.0,0.01459933]
[1731331068596,0.24856621,81550.0,81528.0,0.4651179]
[1731331068597,0.245275,81542.0,81534.0,0.18380438]
[1731331068822,0.12839124,81541.0,81534.0,0.18380438]
[1731331069046,0.12839124,81541.0,81528.0,0.4651179]
[1731331069047,0.12839124,81541.0,81528.0,0.2933989]
[1731331069694,0.12839124,81541.0,81528.0,0.25]
[1731331069695,0.122655,81529.0,81528.0,0.25]
[1731331069910,0.12839124,81541.0,81528.0,0.25]
[1731331069911,0.25,81548.0,81528.0,0.25]
[1731331070122,0.18380438,81542.0,81531.0,0.171713]
[1731331070331,1.62839124,81547.0,81528.0,0.25]
[1731331070332,0.18380438,81544.0,81533.0,0.171709]
[1731331070540,0.00244903,81543.0,81542.0,0.122636]
[1731331070759,0.18380438,81544.0,81542.0,0.03560777]
[1731331070979,1.62594221,81547.0,81546.0,0.12263]
[1731331071187,0.25,81564.0,81546.0,0.02334417]
[1731331071443,0.18380438,81566.0,81556.0,0.122615]
[1731331071444,0.18380438,81557.0,81556.0,0.122615]
[1731331071653,1.5,81565.0,81556.0,0.0294278]
[1731331071860,1.5,81565.0,81564.0,0.122603]
[1731331072352,0.251688,81573.0,81564.0,0.122603]
[1731331072353,0.251688,81573.0,81565.0,0.171642]
[1731331072554,0.18380438,81571.0,81565.0,0.171642]
[1731331072774,0.12594221,81570.0,81566.0,0.0266204]
[1731331072992,0.12594221,81570.0,81565.0,0.171642]
[1731331072993,0.12594221,81570.0,81567.0,0.02336123]
[1731331073209,0.251688,81573.0,81572.0,0.122591]
[1731331073442,0.001688,81573.0,81572.0,0.03175822]
[1731331073676,0.001688,81573.0,81572.0,0.14920782]
[1731331073927,0.12763021,81573.0,81572.0,0.14920782]
[1731331074138,0.12763021,81573.0,81572.0,0.02661682]
[1731331074346,0.25021921,81573.0,81572.0,0.02661682]
[1731331074590,0.12763021,81573.0,81560.0,0.18380438]
[1731331074820,1.62763021,81573.0,81572.0,0.122591]
[1731331075242,1.501688,81573.0,81572.0,0.122591]
[1731331075457,1.501688,81573.0,81572.0,0.12580831]
[1731331075665,1.501688,81573.0,81572.0,0.122591]
[1731331075903,1.501688,81573.0,81572.0,0.12580831]
[1731331076111,1.501688,81573.0,81572.0,0.15356073]
[1731331076530,0.001688,81573.0,81572.0,0.15356073]
[1731331076943,0.001688,81573.0,81572.0,0.15677804]
[1731331077361,0.001688,81573.0,81572.0,0.15356073]
[1731331078302,0.001688,81573.0,81572.0,0.122591]
[1731331078508,0.001688,81573.0,81572.0,0.12252906]
[1731331080951,0.001688,81573.0,81572.0,0.12592166]
[1731331083105,0.001688,81573.0,81572.0,0.38486387]
[1731331083966,0.001688,81573.0,81572.0,0.40652953]
[1731331084144,0.18380438,81593.0,81572.0,0.40652953]
[1731331084145,0.18380438,81593.0,81583.0,0.005]
[1731331084347,0.18380438,81593.0,81592.0,0.122561]
[1731331084590,0.18380438,81603.0,81602.0,0.122546]
[1731331084762,0.18380438,81612.0,81590.0,0.183844]
[1731331084763,0.18380438,81612.0,81611.0,0.122532]
[1731331084968,0.18380438,81612.0,81608.0,0.122536]
[1731331085203,0.28586108,81618.0,81592.0,0.01]
[1731331085204,0.25,81618.0,81592.0,0.01]
[1731331085409,0.25,81618.0,81599.0,0.18380438]
[1731331085612,0.25,81618.0,81615.0,0.122525]
[1731331085859,0.001688,81619.0,81600.0,0.01838044]
[1731331086084,0.12763021,81619.0,81617.0,0.122523]
[1731331086322,0.12763021,81619.0,81605.0,0.18381]
[1731331086536,0.12763021,81619.0,81609.0,0.18380438]
[1731331086739,0.122521,81618.0,81607.0,0.183807]
[1731331086942,0.12763021,81619.0,81611.0,0.122531]
[1731331087190,0.25,81611.0,81603.0,0.183816]
[1731331087397,0.25,81611.0,81575.0,0.39287072]
[1731331087398,0.002,81608.0,81605.0,0.18380438]
[1731331087633,0.00244903,81607.0,81605.0,0.30634438]
[1731331087835,0.00244903,81607.0,81606.0,0.15317444]
[1731331088042,0.00244903,81608.0,81607.0,0.122538]
[1731331088247,1.5,81609.0,81606.0,0.21444244]
[1731331088248,1.5,81609.0,81608.0,0.122537]
[1731331089585,1.5,81609.0,81605.0,0.12254]
[1731331089804,1.5,81609.0,81600.0,0.183823]
[1731331089805,1.5,81609.0,81608.0,0.122537]
[1731331091359,0.001688,81619.0,81618.0,0.122521]
[1731331095860,0.001688,81619.0,81618.0,0.25346321]
[1731331098040,0.001688,81619.0,81618.0,0.43446321]
[1731331098249,0.001688,81619.0,81618.0,0.50263904]
[1731331098893,0.001688,81619.0,81618.0,0.52563904]
[1731331099331,1e-06,81619.0,81618.0,0.52563904]
[1731331099539,1e-06,81619.0,81618.0,0.57243904]
[1731331099750,1e-06,81619.0,81618.0,0.5848251]
[1731331099963,1.5,81650.0,81641.0,0.122487]
[1731331100184,1.5,81650.0,81649.0,0.005]
[1731331100429,0.025864,81667.0,81654.0,0.122467]
[1731331100869,1.5,81661.0,81654.0,0.122467]
[1731331101080,1.5,81661.0,81654.0,0.121936]
[1731331101531,0.00244903,81660.0,81654.0,0.121936]
[1731331101738,0.00244903,81660.0,81641.0,0.0421713]
[1731331101944,1.5,81661.0,81654.0,0.122467]
[1731331102369,1.5,81661.0,81654.0,0.16765456]
[1731331103457,1.5,81661.0,81654.0,0.30104579]
[1731331103668,1.5,81661.0,81654.0,0.29859677]
[1731331103876,0.00169,81666.0,81654.0,0.39859677]
[1731331104978,0.00169,81666.0,81654.0,0.7285471]
[1731331105747,0.00169,81666.0,81654.0,0.75314673]
[1731331106532,0.00169,81666.0,81654.0,0.77614673]
[1731331106661,0.00169,81666.0,81654.0,0.78114673]
[1731331106879,0.00169,81666.0,81665.0,0.255451]
[1731331107088,0.00169,81666.0,81665.0,0.79750608]
[1731331107288,0.00169,81666.0,81665.0,0.78212168]
[1731331107726,0.18380438,81693.0,81690.0,0.122414]
[1731331107943,0.18380438,81693.0,81690.0,0.16021064]
[1731331108162,0.000694,81700.0,81690.0,0.01455126]
[1731331108377,0.00244903,81699.0,81690.0,0.01455126]
[1731331108770,0.00244903,81699.0,81677.0,0.18380438]
[1731331108771,0.25,81692.0,81677.0,0.20704976]
[1731331109010,0.244812,81696.0,81686.0,0.18380438]
[1731331109011,0.00314303,81691.0,81686.0,0.18380438]
[1731331109238,0.00314303,81691.0,81678.0,0.20202744]
[1731331109460,0.00314303,81691.0,81690.0,0.122414]
[1731331109461,0.000694,81691.0,81690.0,0.122414]
[1731331109679,0.000694,81691.0,81690.0,0.39048916]
[1731331109874,0.000694,81691.0,81690.0,0.64239173]
[1731331110300,0.000694,81691.0,81690.0,0.6655311]
[1731331110978,0.000694,81691.0,81690.0,0.40618077]
[1731331111188,0.000694,81691.0,81690.0,0.25209919]
[1731331111398,0.000694,81691.0,81690.0,0.222414]
[1731331111837,0.000694,81691.0,81558.0,0.07236233]
[1731331111838,0.000694,81691.0,81678.0,0.01838044]
[1731331112072,0.000694,81691.0,81688.0,0.183624]
[1731331112284,0.000694,81691.0,81678.0,0.005]
[1731331112285,0.18380438,81689.0,81659.0,0.00383525]
[1731331112487,0.049594,81691.0,81666.0,0.18380438]
[1731331112488,0.244866,81677.0,81666.0,0.18380438]
[1731331112691,0.00244903,81676.0,81675.0,0.18380438]
[1731331112906,0.122436,81675.0,81666.0,0.18380438]
[1731331113113,1.5,81676.0,81666.0,0.18380438]
[1731331113327,0.25,81683.0,81667.0,0.122447]
[1731331113328,0.122431,81679.0,81667.0,0.122447]
[1731331113531,0.00244903,81678.0,81666.0,0.18380438]
[1731331113753,0.00244903,81678.0,81667.0,0.183672]
[1731331113955,0.18380438,81690.0,81675.0,0.183654]
[1731331114104,0.124417,81688.0,81670.0,0.183665]
[1731331114314,0.00244903,81687.0,81677.0,0.122433]
[1731331114519,0.002,81685.0,81671.0,0.18380438]
[1731331114734,0.002,81685.0,81673.0,0.122439]
[1731331114735,0.00244903,81684.0,81673.0,0.122439]
[1731331114901,0.00244903,81684.0,81671.0,0.18380438]
[1731331115101,0.00244903,81684.0,81671.0,0.30624538]
[1731331115301,0.00244903,81684.0,81661.0,0.183685]
[1731331115302,0.55974659,81683.0,81653.0,0.005]
[1731331115520,0.002,81680.0,81666.0,0.18380438]
[1731331115733,0.002,81680.0,81648.0,0.183714]
[1731331115734,0.25,81673.0,81660.0,0.18380438]
[1731331115965,0.37327324,81672.0,81660.0,0.18380438]
[1731331116167,0.122449,81667.0,81660.0,0.18380438]
[1731331116372,0.25,81676.0,81660.0,0.18380438]
[1731331116373,0.00244903,81666.0,81660.0,0.20218482]
[1731331116598,0.244845,81685.0,81660.0,0.01838044]
[1731331116599,0.25,81681.0,81660.0,0.01838044]
[1731331116829,0.18380438,81678.0,81668.0,0.122445]
[1731331117066,0.25,81669.0,81648.0,0.1]
[1731331117284,0.001688,81666.0,81660.0,0.122458]
[1731331117497,0.001688,81666.0,81665.0,0.122451]
[1731331117930,0.001688,81666.0,81665.0,0.25339321]
[1731331118139,0.001688,81666.0,81665.0,0.36084161]
[1731331118398,0.001688,81666.0,81665.0,0.4646697]
[1731331118615,0.001688,81666.0,81665.0,0.4876697]
[1731331118846,0.001688,81666.0,81665.0,0.4646697]
[1731331119397,0.001688,81666.0,81665.0,0.4596697]
[1731331119871,0.001688,81666.0,81665.0,0.4646697]
[1731331120208,0.001688,81666.0,81665.0,0.4596697]
[1731331120443,0.001688,81666.0,81665.0,0.34839321]
[1731331120648,0.001688,81666.0,81665.0,0.2629007]
[1731331122140,0.001688,81666.0,81665.0,0.01450749]
[1731331122405,0.001688,81666.0,81665.0,0.122451]
[1731331123781,0.001688,81666.0,81665.0,0.24839321]
[1731331124008,0.001688,81666.0,81663.0,0.122454]
[1731331124234,0.001688,81666.0,81655.0,0.1]
[1731331124482,0.001688,81666.0,81648.0,0.00012114]
[1731331124483,0.12594221,81665.0,81648.0,0.00012114]
[1731331124658,0.001688,81666.0,81648.0,0.00012114]
[1731331124659,0.001688,81666.0,81660.0,0.18380438]
[1731331124875,0.001688,81666.0,81652.0,0.183706]
[1731331125082,0.001688,81666.0,81663.0,0.122453]
[1731331125254,0.001688,81666.0,81653.0,0.04935737]
[1731331125477,0.001688,81666.0,81654.0,0.122467]
[1731331125478,0.122456,81662.0,81654.0,0.122467]
[1731331125684,0.001688,81666.0,81653.0,0.23316175]
[1731331125685,0.03736878,81666.0,81663.0,0.122453]
[1731331125836,0.001688,81666.0,81665.0,0.122451]
[1731331126045,0.001688,81666.0,81665.0,0.1346961]
[1731331126445,0.001688,81666.0,81665.0,0.26308706]
[1731331126651,0.001688,81666.0,81665.0,0.26563831]
[1731331126873,0.001688,81666.0,81665.0,0.37063831]
[1731331127253,0.001688,81666.0,81665.0,0.64798864]
[1731331127665,0.21948516,81688.0,81681.0,0.183641]
[1731331127846,0.18380438,81688.0,81687.0,0.122418]
[1731331128059,0.21961077,81688.0,81687.0,0.122418]
[1731331128263,0.03580639,81688.0,81687.0,0.122418]
[1731331128457,0.05352118,81688.0,81683.0,0.183636]
[1731331128703,0.03582684,81686.0,81666.0,0.1]
[1731331128923,0.03582684,81683.0,81670.0,0.18380438]
[1731331129155,0.244863,81678.0,81670.0,0.18380438]
[1731331129380,0.05352118,81671.0,81670.0,0.18380438]
[1731331129587,0.13226823,81671.0,81670.0,0.18380438]
[1731331129818,0.13226823,81671.0,81666.0,0.122448]
[1731331130025,0.05375136,81667.0,81666.0,0.122449]
[1731331130425,0.05375136,81668.0,81667.0,0.122448]
[1731331130673,0.07166836,81670.0,81666.0,0.122449]
[1731331130910,0.122439,81674.0,81666.0,0.122449]
[1731331130911,0.20399777,81669.0,81666.0,0.122449]
[1731331131114,1.57169515,81669.0,81665.0,0.000843]
[1731331131315,1.57169515,81669.0,81667.0,0.122448]
[1731331131316,0.03584772,81668.0,81667.0,0.122448]
[1731331131558,0.03584755,81668.0,81667.0,0.122448]
[1731331131759,1.55377163,81669.0,81668.0,0.122446]
[1731331131973,1.53585974,81669.0,81668.0,0.122446]
[1731331132182,1.5,81669.0,81668.0,0.122396]
[1731331132604,1.5,81669.0,81668.0,0.1714554]
[1731331132825,1.53587174,81669.0,81668.0,0.122396]
[1731331133012,1.5,81669.0,81668.0,0.122446]
[1731331133149,0.03587174,81673.0,81665.0,0.000843]
[1731331133356,0.27300634,81683.0,81666.0,0.12594221]
[1731331133357,0.03587174,81679.0,81666.0,0.12594221]
[1731331133575,0.03587174,81679.0,81665.0,0.000843]
[1731331133576,0.18380438,81674.0,81668.0,0.122446]
[1731331133779,0.122438,81674.0,81668.0,0.122446]
[1731331133988,0.122445,81670.0,81665.0,0.000843]
[1731331134189,0.15831574,81670.0,81665.0,0.000843]
[1731331134390,0.03587174,81670.0,81665.0,0.000843]
[1731331134595,0.03587174,81670.0,81666.0,0.0123297]
[1731331134596,0.03587174,81669.0,81666.0,0.0123297]
[1731331134914,0.03587174,81668.0,81666.0,0.0123297]
[1731331135140,0.03587174,81669.0,81668.0,0.122446]
[1731331135368,0.03587174,81673.0,81669.0,0.183668]
[1731331135571,0.03587174,81677.0,81669.0,0.183668]
[1731331135771,0.03587174,81675.0,81672.0,0.18366]
[1731331135981,0.03587174,81675.0,81665.0,0.000843]
[1731331135982,0.03587174,81676.0,81665.0,0.000843]
[1731331136115,0.03594755,81676.0,81675.0,0.122436]
[1731331136315,0.03594755,81676.0,81668.0,0.18380438]
[1731331136316,1.5,81678.0,81677.0,0.122433]
[1731331136514,0.03594755,81680.0,81678.0,0.122431]
[1731331136723,0.000694,81691.0,81681.0,0.122427]
[1731331136724,0.03594755,81682.0,81681.0,0.122427]
[1731331137354,0.000694,81691.0,81683.0,0.122424]
[1731331137355,0.03594755,81684.0,81683.0,0.122424]
[1731331137555,0.07238915,81691.0,81679.0,0.183643]
[1731331137556,0.05377163,81686.0,81679.0,0.183643]
[1731331137896,0.000694,81691.0,81684.0,0.122422]
[1731331137897,0.03598839,81685.0,81684.0,0.122422]
[1731331138108,0.07238915,81691.0,81680.0,0.183643]
[1731331138109,0.03598839,81686.0,81685.0,0.122421]
[1731331138319,0.03598839,81688.0,81685.0,0.122421]
[1731331138544,0.000694,81691.0,81685.0,0.122421]
[1731331138807,0.03600358,81688.0,81686.0,0.122419]
[1731331138986,0.03600358,81688.0,81682.0,0.122425]
[1731331139219,0.03600358,81688.0,81683.0,0.183636]
[1731331139457,0.17711137,81691.0,81683.0,0.183636]
[1731331139458,0.03600358,81689.0,81686.0,0.122418]
[1731331139667,0.03600358,81688.0,81686.0,0.122418]
[1731331139893,0.03600358,81688.0,81684.0,0.183634]
[1731331139894,0.03594425,81688.0,81687.0,0.0338495]
[1731331140099,1.53594425,81688.0,81687.0,0.122418]
[1731331140549,1.5,81688.0,81687.0,0.122418]
[1731331141651,0.000694,81691.0,81687.0,0.122418]
[1731331141944,0.000694,81691.0,81690.0,0.122414]
[1731331142198,0.000694,81691.0,81690.0,0.34835621]
[1731331142437,0.000694,81691.0,81690.0,0.43878023]
[1731331142874,0.000694,81691.0,81690.0,0.31283802]
[1731331143087,0.000694,81691.0,81690.0,0.122414]
[1731331144415,0.000694,81691.0,81690.0,0.124862]
[1731331144670,0.000694,81691.0,81690.0,0.122414]
[1731331146134,0.000694,81691.0,81690.0,0.24835621]
[1731331146380,0.000694,81691.0,81690.0,0.32879747]
[1731331147122,0.000694,81691.0,81690.0,0.42879747]
[1731331148476,0.000694,81691.0,81690.0,0.58249747]
[1731331148677,0.000694,81691.0,81690.0,0.55949747]
[1731331148890,0.000694,81691.0,81690.0,0.42815621]
[1731331149196,0.002,81690.0,81669.0,0.18380438]
[1731331149450,0.122426,81682.0,81681.0,0.18380438]
[1731331149646,0.00244903,81689.0,81671.0,0.183663]
[1731331149647,0.122427,81681.0,81671.0,0.183663]
[1731331149860,0.244836,81687.0,81671.0,0.183663]
[1731331149861,1.5,81682.0,81678.0,0.122431]
[1731331150074,1.5,81682.0,81671.0,0.03683124]
[1731331150075,0.002,81680.0,81671.0,0.03683124]
[1731331150259,0.12243,81679.0,81673.0,0.122438]
[1731331150522,0.122425,81683.0,81671.0,0.03683124]
[1731331150743,1.5,81678.0,81677.0,0.122433]
[1731331150982,1.5,81678.0,81671.0,0.03683124]
[1731331150983,1.5,81678.0,81675.0,0.122436]
[1731331151202,1.5,81678.0,81676.0,0.122434]
[1731331151423,1.5,81678.0,81671.0,0.03683124]
[1731331151653,1.5,81678.0,81676.0,0.122434]
[1731331151888,1.5,81678.0,81673.0,0.183659]
[1731331151889,1.5,81678.0,81671.0,0.1]
[1731331152119,1.5,81678.0,81674.0,0.122437]
[1731331152375,1.5,81678.0,81672.0,0.183661]
[1731331152576,1.5,81678.0,81671.0,0.1]
[1731331152803,1.5,81678.0,81673.0,0.122439]
[1731331153042,1.5,81678.0,81667.0,0.30625138]
[1731331153043,0.122435,81676.0,81667.0,0.30625138]
[1731331153276,0.00244903,81677.0,81658.0,0.36749538]